Cogmind - Beta 11.1 @@@ ROGUE MODE // 2022.06.01 @ 22:33:51 Player: leiavoia Result: Destroyed by G-67 Veteran with Field Laser Performance ------------- Evolutions (7) 3500 Regions Visited (27) 5400 Robots Destroyed (555) 2775 Value Destroyed (25353) 25353 Prototype IDs (72) 1440 Alien Tech Used (1) 200 Bonus (11230) 11230 TOTAL SCORE: 49898 Bonus ------- High Alert Combat Kills 5188 Follower Combat Kills 2422 Network Hubs Disabled 200 Met Data Miner 300 Met Zhirov 300 Met Warlord at Base 500 MAIN.C Attacked Warlord 500 Warlord Defense Kills 1496 A7 Reached Mainframe 300 Met R17 at Cetus 500 Scanned by Researcher 500 Acquired SGEMP 2000 Friendly Fire -2976 Cogmind --------- Core Integrity 0/1300 Matter 235/300 Energy 100/100 System Corruption 56% Temperature Warm (128) Movement Core (1350) Ox26 Location -3/Testing Parts ------- > --- POWER (2) -------- (None) > --- PROPULSION (6) --- (None) > --- UTILITY (10) ----- Huge Storage Unit Advanced Target Analyzer Core Analyzer > --- WEAPON (3) ------- (None) > --- INVENTORY (25) --- Light Antimatter Reactor Reinforced Antimatter Reactor High-capacity Storage Unit YI-UF0's Bottomless Matter Pit (1500) Long-range Sensor Array Seismic Detector Faulty Precision Energy Filter Experimental ECM Suite Improved Cloaking Device Transdimensional Reconstructor Disintegrator Coil Gun Improved KE Penetrator Powered Hammer SGEMP Prototype Peak State ------------ > --- POWER ------------ Vortex Chain Reactor > --- PROPULSION ------- Centrium Heavy Treads Biometal Heavy Treads Biometal Heavy Treads > --- UTILITY ---------- Advanced Heat Sink Advanced Cooling System Huge Storage Unit Experimental Targeting Computer Advanced Weapon Cycler Improved Cloaking Device Improved Medium Armor Plating Layered Light Armor Plating Layered Light Armor Plating Advanced Hacking Suite > --- WEAPON ----------- Heavy Phase Cannon Heavy Phase Cannon Improved KE Penetrator > --- INVENTORY -------- F-cell Engine Reinforced Antimatter Reactor Particle Reactor Advanced Heavy Treads Biometal Heavy Treads Biometal Heavy Treads High-capacity Storage Unit Improved Energy Well YI-UF0's Bottomless Matter Pit Long-range Sensor Array Improved Phase Shifter Improved Core Shielding Layered Light Armor Plating High-powered Tractor Beam Transdimensional Reconstructor Matter Neutralizer Vortex Cannon Railgun Railgun Gamma Bomb Array Long-range Missile Launcher Advanced Micro-nuke Launcher [Rating: 162] Favorites ----------- Power Heavy Ion Engine Engine Heavy Ion Engine Power Core Fission Core Reactor Antimatter Reactor Propulsion Improved Treads Treads Improved Treads Leg Armored Leg Wheel Armored Huge Wheel Utility Hardened Medium Armor Plating Device Advanced Heat Sink Storage Huge Storage Unit Processor Experimental Targeting Computer Hackware Advanced Hacking Suite Protection Hardened Medium Armor Plating Weapon Advanced Plasma Cannon Energy Gun Force Rifle Energy Cannon Advanced Plasma Cannon Ballistic Gun Enhanced Autogun Ballistic Cannon Antimatter Cannon Launcher Heavy Missile Launcher Special Weapon Improved Remote Datajack Impact Weapon Power Maul Piercing Weapon Spear Build | -11 -10 -10 -9 -9 -8 -7 -7 -7 -7 -6 -6 -6 -6 -6 -6 -5 -5 -5 -5 -4 -4 -4 -4 -4 -3 -3 -3 ------- Run | Scr Mat Min Mat Sto Mat Fac Low Low Dat Pro Fac Ext Cet Arc Hub Fac Upp Upp Zhi Pro Fac Upp Upp War Pro Res Tes Slots Evolved 14 | . . . 2 . 2 2 . . . . 2 . . . . 2 . . . . 2 . . . . 2 . Power 1 | . . . . . . . . . . . . . . . . . . . . . 1 . . . . . . Propulsion 4 | . . . 1 . . 1 . . . . . . . . . 2 . . . . . . . . . . . Utility 8 | . . . 1 . 2 1 . . . . 1 . . . . . . . . . 1 . . . . 2 . Weapon 1 | . . . . . . . . . . . 1 . . . . . . . . . . . . . . . . Parts Attached 669 | 1 13 8 31 19 34 28 9 24 5 12 78 27 28 11 23 73 14 1 11 3 10 19 10 25 23 49 80 Power 39 | . 4 . 2 2 3 1 2 2 . . 4 3 1 1 1 3 . . 1 . 1 . . 1 2 . 5 Engine 24 | . 4 . 2 2 3 1 2 2 . . 2 2 . 1 . 2 . . . . . . . . . . 1 Core 5 | . . . . . . . . . . . 2 1 1 . . . . . . . . . . . 1 . . Reactor 10 | . . . . . . . . . . . . . . . 1 1 . . 1 . 1 . . 1 1 . 4 Propulsion 100 | . 5 3 8 3 5 9 . 5 . 3 12 5 2 . 1 11 . 1 . . 1 1 . 10 1 6 8 Treads 64 | . 3 2 8 3 5 5 . 1 . . . 4 2 . 1 7 . 1 . . . 1 . 9 1 3 8 Leg 19 | . . . . . . . . 3 . 3 12 1 . . . . . . . . . . . . . . . Wheel 17 | . 2 1 . . . 4 . 1 . . . . . . . 4 . . . . 1 . . 1 . 3 . Hover . | . . . . . . . . . . . . . . . . . . . . . . . . . . . . Flight . | . . . . . . . . . . . . . . . . . . . . . . . . . . . . Utility 305 | 1 2 2 8 6 12 7 6 8 3 5 32 11 14 9 9 43 9 . 5 3 5 12 6 8 14 32 33 Device 144 | 1 1 1 . 4 6 5 2 3 2 1 12 5 5 5 4 15 5 . 3 2 3 11 3 4 10 16 15 Storage 23 | . 1 1 . . . . . . . . 6 . . . . . 1 . 1 1 2 1 . 1 3 2 3 Processor 13 | . . . . . . 1 1 . . . 1 . . . . 5 . . . . . . . . . 3 2 Hackware 13 | . . . 1 . . . . . . . 1 . . 4 . 3 . . . . . . . . . 4 . Protection 112 | . . . 7 2 6 1 3 5 1 4 12 6 9 . 5 20 3 . 1 . . . 3 3 1 7 13 Artifact . | . . . . . . . . . . . . . . . . . . . . . . . . . . . . Weapon 225 | . 2 3 13 8 14 11 1 9 2 4 30 8 11 1 12 16 5 . 5 . 3 6 4 6 6 11 34 Energy Gun 20 | . . . . 1 . 1 . 2 1 3 8 . . . . . . . . . . . 1 . . . 3 Energy Cannon 66 | . 1 . 3 3 6 2 . 1 . . 2 2 2 1 . 3 3 . 5 . 3 1 2 4 6 8 8 Ballistic Gun 42 | . 1 2 6 2 2 3 . 2 . . 5 . . . 3 2 . . . . . . . . . 2 12 Ballistic Cannon 40 | . . . . . 2 2 1 1 1 . 7 3 5 . 5 8 1 . . . . 3 . 1 . . . Launcher 44 | . . 1 4 2 4 2 . 3 . 1 3 3 3 . 2 2 1 . . . . 1 1 1 . 1 9 Special Weapon 1 | . . . . . . . . . . . . . . . . . . . . . . 1 . . . . . Impact Weapon 11 | . . . . . . . . . . . 5 . 1 . 2 1 . . . . . . . . . . 2 Slashing Weapon . | . . . . . . . . . . . . . . . . . . . . . . . . . . . . Piercing Weapon 1 | . . . . . . 1 . . . . . . . . . . . . . . . . . . . . . Special Melee Weapon . | . . . . . . . . . . . . . . . . . . . . . . . . . . . . Unidentified Prototypes 38 | . . 1 1 2 . 2 . . . 1 5 . 3 . 1 3 . . 5 . 1 . . 6 . 2 5 Corrupted Parts 16 | . . . . . . . . 3 . . . . 2 . 5 . . . . . . . . . 1 . 5 System Corruption 76 | . . . . . . . . 8 . . . . 4 . 27 . . . . . . . . . 8 . 29 Parts Lost 132 | . 2 2 1 . 8 5 3 14 . 7 9 . 8 1 2 14 . 1 . . . . 3 2 3 6 41 Power 9 | . 1 . . . . . . 1 . . . . . . . 2 . . . . . . . . . . 5 Propulsion 29 | . 1 1 1 . 1 3 2 4 . 1 3 . . . . 5 . 1 . . . . . . . . 6 Utility 65 | . . . . . 7 2 1 7 . 5 4 . 5 1 1 4 . . . . . . 3 1 2 5 17 Weapon 29 | . . 1 . . . . . 2 . 1 2 . 3 . 1 3 . . . . . . . 1 1 1 13 Highest Loss Streak 19 | . 1 2 1 . 3 2 3 7 . 3 2 . 6 1 1 4 . 1 . . . . 3 2 2 2 19 To Critical Strikes 1 | . . . . . . . . . . . . . . . . . . . . . . . . 1 . . . Average Slot Usage (%) 90 | . 98 100 99 99 98 95 88 78 62 92 90 95 90 85 86 85 88 87 73 88 86 89 88 91 85 78 79 Engine 4 | . 13 14 11 11 8 7 6 6 7 7 3 5 . 1 6 2 . . . . . . . . . . 1 Reactor 2 | . . . . . . . . . . . . . . . . 1 5 5 4 5 8 10 10 6 4 4 5 Treads 16 | . 19 18 31 32 26 21 20 11 . . . 9 18 13 13 17 11 10 11 11 5 5 5 22 31 10 13 Leg 4 | . 2 . . . . . . 2 23 27 25 16 . . . . . . . . . . . . . . . Wheel 4 | . 4 9 . . . 5 7 7 . . . . . . . 5 11 11 11 11 14 15 15 5 . 8 . Device 13 | . 14 13 1 11 12 32 24 7 . 12 12 10 13 13 7 7 11 11 10 10 13 15 16 17 16 17 13 Storage 7 | . 14 14 11 11 9 7 7 7 7 7 8 6 6 6 6 5 5 5 5 5 6 5 5 7 6 5 7 Processor 1 | . . . . . . 1 . 7 7 6 1 . . . . 2 5 5 5 5 5 5 . . . 5 3 Hackware 1 | . . . 2 . . . . . . . 1 . . 8 16 9 . . . . . . . . . 3 3 Protection 13 | . . . 17 10 22 3 8 15 15 16 12 24 24 16 14 11 16 17 17 17 15 15 19 14 8 5 14 Energy Gun 1 | . . . . . . . . . . 10 7 2 . . . . . . . . . . . . . . 1 Energy Cannon 7 | . 10 14 10 19 8 2 2 2 . . . 3 6 6 2 2 6 17 3 17 15 10 9 10 12 13 4 Ballistic Gun 2 | . 17 13 10 1 . 7 . 2 . . 2 . . . . 6 . . . . . . . . . . 4 Ballistic Cannon 3 | . . . . . 6 3 7 3 . 2 5 8 8 13 16 6 9 . . . . 4 5 4 2 . . Naked Turns . | . . . . . . . . . . . . . . . . . . . . . . . . . . . . Heaviest Build 207 | 11 91 98 111 111 128 112 129 127 110 117 119 123 115 106 114 118 152 152 154 155 184 183 186 202 207 166 170 Greatest Support 230 | 20 40 40 69 69 66 94 16 30 45 91 91 90 160 160 160 220 56 56 56 56 72 72 72 165 165 225 230 Greatest Overweight (x) 35 | . 5 9 9 1 3 6 8 35 3 2 2 2 1 . 1 7 2 2 2 2 2 2 2 2 1 2 33 Average Overweight (x) 2 | . . 4 1 1 1 4 6 6 2 1 . 1 . . . 1 1 2 2 2 2 2 2 1 . 1 . Largest Inventory Capacity 25 | 8 25 25 25 25 25 25 25 25 25 25 25 20 20 20 20 20 25 25 25 25 25 25 25 25 25 25 25 Average Capacity 23 | 8 13 25 25 25 25 25 25 25 25 25 20 20 20 20 20 20 24 25 25 25 25 25 25 25 22 21 25 Most Carried 25 | 8 21 25 25 25 25 25 25 25 24 25 23 20 20 20 20 20 25 25 25 25 25 25 25 25 24 25 25 Average Carried 22 | 6 10 21 24 24 24 24 24 23 23 23 19 19 19 19 19 19 24 24 24 25 24 25 24 24 21 20 23 Final Capacity 25 | 8 25 25 25 25 25 25 25 25 25 25 20 20 20 20 20 20 25 25 25 25 25 25 25 25 20 25 25 Final Carried 25 | 7 21 24 25 25 25 25 25 24 21 24 20 20 20 20 20 20 25 25 25 25 25 25 25 25 20 25 17 Class Distribution -------------------- 38% | Mutant 23% | Scavenger-Mutant 14% | Tank 11% | Scavenger-Tank 4% | Commander-Mutant 3% | Derelict-Mutant Dominant Class ---------------- Mutant | -10/Materials Mutant | -10/Mines Mutant | -9/Materials Mutant | -9/Storage Mutant | -8/Materials Scavenger-Mutant | -7/Factory Scavenger-Mutant | -7/Lower Caves Mutant | -7/Lower Caves Scavenger-Mutant | -7/Data Miner Scavenger-Mutant | -6/Proximity Caves Tank | -6/Factory Mutant | -6/Extension Scavenger-Mutant | -6/Cetus Scavenger-Mutant | -6/Archives Scavenger-Tank | -6/Hub_04(d) Scavenger-Tank | -5/Factory Tank | -5/Upper Caves Mutant | -5/Upper Caves Mutant | -5/Zhirov Tank | -4/Proximity Caves Mutant | -4/Factory Tank | -4/Upper Caves Mutant | -4/Upper Caves Commander-Mutant | -4/Warlord Scavenger-Tank | -3/Proximity Caves Tank | -3/Research Mutant | -3/Testing Resources | -11 -10 -10 -9 -9 -8 -7 -7 -7 -7 -6 -6 -6 -6 -6 -6 -5 -5 -5 -5 -4 -4 -4 -4 -4 -3 -3 -3 ----------- Run | Scr Mat Min Mat Sto Mat Fac Low Low Dat Pro Fac Ext Cet Arc Hub Fac Upp Upp Zhi Pro Fac Upp Upp War Pro Res Tes Matter Collected 19079 | 274 278 541 1023 1055 683 772 296 1227 . 315 2030 914 771 258 718 2540 404 151 281 544 89 603 258 444 498 540 1572 Remotely 2280 | . . . . . . . . . . . . 162 275 . 148 873 288 . . . . 130 . . . . 404 Salvage Created 25700 | 162 971 382 1052 1287 1503 715 44 1202 . 312 3299 1121 616 528 998 1414 75 90 281 440 281 473 533 445 1283 2022 4171 Parts 1067 | 13 62 16 63 68 76 32 1 48 . 10 127 67 25 31 35 53 2 2 5 13 15 27 7 17 32 67 153 Haulers Intercepted 20 | . 2 . 1 5 4 . . . . . 3 . . . 1 2 . . . . . . . . . . 2 Recyclers Shooed 18 | . 2 1 2 . . 4 . . . . 8 . . . . 1 . . . . . . . . . . . Parts Field Recycled . | . . . . . . . . . . . . . . . . . . . . . . . . . . . . Retrieved Matter . | . . . . . . . . . . . . . . . . . . . . . . . . . . . . Parts Self-Destructed 126 | . . . . . . . 1 39 . 8 . . . . . . 6 . 4 1 . 32 10 . 25 . . Prevented 22 | . . . . . . . 1 2 . 5 . . . . . . 1 2 . 4 . . . . 7 . . Kills | -11 -10 -10 -9 -9 -8 -7 -7 -7 -7 -6 -6 -6 -6 -6 -6 -5 -5 -5 -5 -4 -4 -4 -4 -4 -3 -3 -3 ------- Run | Scr Mat Min Mat Sto Mat Fac Low Low Dat Pro Fac Ext Cet Arc Hub Fac Upp Upp Zhi Pro Fac Upp Upp War Pro Res Tes Combat Hostiles Destroyed 447 | . 19 5 21 25 32 13 2 28 . 2 49 19 18 4 26 27 1 1 . 2 3 16 10 11 23 32 58 Guns 76 | . 7 1 6 7 1 2 . 1 . 2 16 2 . . . 10 . . . . . . . . . 1 20 Cannons 241 | . 12 1 7 14 21 10 2 20 . . 23 9 7 4 18 12 1 . . 1 3 12 2 7 21 26 8 AOE 99 | . . 3 8 4 10 1 . 7 . . 10 7 10 . 7 4 . . . . . 4 7 3 . . 14 Classes Destroyed 29 | 2 4 1 3 1 4 1 1 2 . . 2 1 . . . . . . . . . . 2 1 . . 4 Worker 17 | . . 1 1 2 1 . . . . . 1 2 . . . 5 . . . . . . . . . . 4 Builder 21 | . . . 1 . 3 . . . . . 4 7 . . 1 1 . . . . 1 . . . . 1 2 Tunneler 8 | 5 . . . . . . . . . . . 1 . . 1 1 . . . . . . . . . . . Hauler 20 | . 2 . 1 5 4 . . . . . 3 . . . 1 2 . . . . . . . . . . 2 Recycler 26 | 1 2 1 2 . 2 5 . . . . 9 1 . . . 1 . . . . . . . . . 1 1 Minesweeper 1 | . . . . . . . . 1 . . . . . . . . . . . . . . . . . . . Mechanic 1 | . . . . . . . . . . . . . . . . . . . . . . . 1 . . . . Operator 9 | . . . . 1 . . . . . . . . . 8 . . . . . . . . . . . . . Drone 2 | . . . . . 2 . . . . . . . . . . . . . . . . . . . . . . Watcher 9 | . 3 . 3 1 . . . . . . 1 . . . . . . . . . 1 . . . . . . Swarmer 67 | . 3 3 3 4 4 3 . 8 . . 3 2 5 . 3 2 . . . . . 10 1 . 2 6 5 Grunt 192 | . 16 2 8 16 19 5 . 11 . . 16 9 6 . 18 13 . . . . . 1 5 4 10 5 28 Brawler 13 | . . . 1 . . . . 3 . . . . . . . . . . . . . . 1 2 2 . 4 Duelist 19 | . . . . . . . . 5 . . . 3 . . . . . . . . . 1 2 2 2 1 3 Protector 7 | . . . . . . . . . . . . 3 . . . . . . . . . . . 2 1 . 1 Researcher 3 | . . . . . . . . . . . . . . . . . . . . . . . . . . . 3 Sentry 53 | . . . 9 6 3 1 1 2 . . 6 . . 4 3 2 1 1 . . 1 1 . . 2 9 1 Demolisher 2 | . . . . . . . . . . . 2 . . . . . . . . . . . . . . . . Specialist 11 | . . . . . 2 . . . . . 4 . . . . 2 . . . . . . . . . . 3 Hunter 31 | . . . . . 3 1 . 1 . 2 3 . 2 . 2 4 . . . 2 1 2 . . 2 2 4 Programmer 26 | . . . . . . 3 . . . . 4 . . . . 3 . . . . 1 . . . 2 8 5 Heavy 3 | . . . . . 1 . . . . . 1 . . . . 1 . . . . . . . . . . . Q-Series 1 | . . . . . . . . . . . . . . . . . . . . . . . . . . . 1 Behemoth 6 | . . . . . . . 1 . . . 1 2 . . . . . . . . . 1 . . . 1 . Cetus Guard 5 | . . . . . . . . . . . . . 5 . . . . . . . . . . . . . . Striker 2 | . . . . . . . . . . . . . . . . . . . . . . . . . . . 2 Executioner 1 | . . . . . . . . . . . . . . . . . . . . . . . . 1 . . . Alpha 7 1 | . . . . . . . . . . . . . . . . . . . . . . . . . . . 1 Assembled 9 | . . . . . . . . . . . 9 . . . . . . . . . . . . . . . . Thug 1 | . . 1 . . . . . . . . . . . . . . . . . . . . . . . . . Butcher 1 | . . . . . . . . . . . . 1 . . . . . . . . . . . . . . . Mutant 1 | . . . . . . . . . . . . . . . . . . . . . . . 1 . . . . Best Kill Streak 14 | 3 5 3 5 4 7 5 1 8 . 1 9 10 4 6 7 14 1 1 . 2 2 7 7 8 7 7 9 Combat Bots Only 10 | . 4 3 5 4 5 3 1 8 . 1 9 6 4 4 7 10 1 1 . 2 1 7 7 8 7 6 9 Max Kills in Single Turn 5 | 1 1 2 4 3 3 2 1 2 . 1 4 5 2 1 2 3 1 1 . 1 2 2 3 2 2 2 4 Gunslinging . | . . . . . . . . . . . . . . . . . . . . . . . . . . . . Exploded 4 | . . 2 4 3 2 1 . 2 . . 4 2 2 . 2 1 . . . . . 2 3 1 . . 3 Melee . | . . . . . . . . . . . . . . . . . . . . . . . . . . . . Uniques/NPCs Destroyed 1 | . . 1 . . . . . . . . . . . . . . . . . . . . . . . . . YI-UF0 (-10/Mines) Combat | -11 -10 -10 -9 -9 -8 -7 -7 -7 -7 -6 -6 -6 -6 -6 -6 -5 -5 -5 -5 -4 -4 -4 -4 -4 -3 -3 -3 -------- Run | Scr Mat Min Mat Sto Mat Fac Low Low Dat Pro Fac Ext Cet Arc Hub Fac Upp Upp Zhi Pro Fac Upp Upp War Pro Res Tes Damage Taken 42241 | . 519 185 968 573 3111 1207 893 2049 . 995 4542 809 1718 233 1413 3801 183 140 . 266 117 755 513 2337 1263 2422 11229 Core 3860 | . 126 18 119 58 470 98 36 362 . 123 241 47 122 16 126 260 . . . . 4 45 56 211 21 111 1190 Absorbed by Shields 3590 | . . . . . . . 195 . . . . 285 . . . . . . . . 124 435 102 599 983 359 508 Reduced by Siege Mode 705 | . . . . . . . . . . . . . 71 4 . 101 . . . . . . . . . . 529 Redirected to Shielding 578 | . . . . . . . 29 13 . 4 . . . . . 164 . . . . . . . . . . 368 Regen/Repaired (Parts) 539 | . . . 371 100 . . . . . . . . . . . . . . . . . . . . . . 68 Core Remaining (%) 50 | 100 . 42 . 55 14 . . . . 11 . . . . 35 . . . . 74 . . . . 70 . . Volleys Fired 1505 | 32 66 29 57 74 104 58 25 115 . 16 156 36 49 59 47 96 46 8 6 19 15 39 15 38 46 96 158 Largest 3 | 2 2 2 2 2 2 2 2 2 . 2 3 3 3 3 3 3 3 2 2 3 3 3 3 3 3 3 3 Hottest 301 | 40 80 80 83 136 136 113 113 120 . 141 215 147 188 161 161 177 219 188 196 269 293 301 243 243 296 296 270 Shots Fired 3081 | 64 133 56 100 138 191 115 30 137 . 24 396 95 102 81 126 254 52 11 10 42 33 83 35 80 116 249 328 Gun 899 | 64 85 27 45 36 12 50 . 31 . 15 256 8 . . . 84 . . . . . . . . . 4 182 Cannon 2035 | . 48 27 43 95 163 61 30 95 . 7 131 77 88 81 121 160 51 11 10 42 33 79 31 72 116 245 118 Launcher 147 | . . 2 12 7 16 4 . 11 . 2 9 10 14 . 5 10 1 . . . . 4 4 8 . . 28 Special . | . . . . . . . . . . . . . . . . . . . . . . . . . . . . Kinetic 1344 | 64 85 27 45 27 55 91 25 63 . 7 211 50 39 22 110 213 2 . . . . 23 11 14 15 4 141 Thermal 1315 | . 48 27 40 101 120 20 5 37 . 7 141 35 33 59 11 8 47 6 10 30 31 56 20 48 67 203 105 Explosive 136 | . . 2 12 7 16 4 . 11 . 2 9 10 14 . 5 10 1 . . . . 4 4 8 . . 17 Electromagnetic 202 | . . . 3 3 . . . 26 . 8 35 . 16 . . 23 2 5 . 12 2 . . . 8 9 50 Entropic 84 | . . . . . . . . . . . . . . . . . . . . . . . . 10 26 33 15 Robot Hit Streak 46 | 10 13 12 15 13 20 9 20 20 . 6 13 10 46 12 20 26 4 7 15 17 5 14 11 10 10 29 34 Robot Miss Streak 6 | 5 3 2 3 2 4 6 2 4 . 2 4 5 5 2 3 3 1 . . 1 2 4 3 4 2 3 4 Penetration Max 1 | . . . . . . . . 1 . . 1 . . . . 1 . . . . . . . . 1 1 1 Secondary Targets 3 | . . . . . . . . . . . . . . . . . . . . . . . . . . . 3 Max Gunslinging Chain 1 | . . . . . . . . . . . . . . . . . . . . . . . . . . . 1 Shots Hit Robots 1956 | 35 78 40 69 91 127 74 26 92 . 13 249 64 68 56 75 174 5 3 8 19 16 50 23 39 63 183 216 Core Hits 1085 | 10 38 16 42 40 76 26 5 48 . 6 133 51 47 27 49 68 2 . 4 11 8 25 29 58 32 53 181 Critical Kills 25 | . . 1 1 . 1 1 . . . . 1 1 . . 1 5 . . . . . . . 1 1 3 8 Critical Parts Destroyed 24 | 1 . . . . . 1 . . . . 8 1 . . . 10 . . . . . . . . . . 3 Critical Strikes 104 | 1 . 1 1 . 1 4 1 6 . . 14 2 1 2 9 17 . . . . . . . 4 7 15 18 Burn 1 | . . . . . . . . . . . 1 . . . . . . . . . . . . . . . . Meltdown 10 | . . 1 1 . 1 . . . . . . . . . 1 . . . . . . . . 1 1 3 1 Destroy 37 | 1 . . . . . 2 . . . . 8 1 . . . 15 . . . . . . . . . . 10 Blast 25 | . . . . . . 2 1 6 . . 3 . 1 2 8 2 . . . . . . . . . . . Corrupt 7 | . . . . . . . . . . . 1 . . . . . . . . . . . . . . 3 3 Smash 2 | . . . . . . . . . . . 1 1 . . . . . . . . . . . . . . . Sunder 22 | . . . . . . . . . . . . . . . . . . . . . . . . 3 6 9 4 Melee Attacks 47 | . . . . . . 1 . . . . 23 12 4 . 3 3 . . . . . . . . . . 1 Impact 46 | . . . . . . . . . . . 23 12 4 . 3 3 . . . . . . . . . . 1 Slashing . | . . . . . . . . . . . . . . . . . . . . . . . . . . . . Piercing 1 | . . . . . . 1 . . . . . . . . . . . . . . . . . . . . . Sneak Attacks 3 | . . . . . . . . . . . 2 1 . . . . . . . . . . . . . . . Combat Hostiles . | . . . . . . . . . . . . . . . . . . . . . . . . . . . . Follow-up Attacks . | . . . . . . . . . . . . . . . . . . . . . . . . . . . . Damage Inflicted 78032 | 283 1154 767 1861 2231 4234 2024 1197 4299 . 415 8547 3905 3211 1583 3093 6125 163 90 329 774 730 2525 1972 3632 3416 8041 11431 Guns 12549 | 283 511 242 454 455 82 553 . 361 . 214 3725 121 . . . 1892 . . . . . . . . . 37 3619 Cannons 46390 | . 629 352 701 1519 2601 1193 1197 2780 . 201 3364 1712 1966 1527 2223 3146 163 90 329 774 730 2116 843 1693 3416 8004 3121 Explosions 18334 | . . 173 688 212 1536 246 . 1158 . . 1217 1830 1245 . 835 1073 . . . . . 409 1128 1939 . . 4645 Melee 483 | . . . . . . . . . . . 241 242 . . . . . . . . . . . . . . . Ramming 276 | . 14 . 18 45 15 32 . . . . . . . 56 35 14 . . . . . . 1 . . . 46 Kinetic 24752 | 283 511 242 454 347 819 1346 1089 2076 . 201 4326 1137 932 448 2032 4215 73 . . . . 586 276 165 255 37 2902 Thermal 25249 | . 629 352 821 1613 1864 400 108 736 . 95 2282 696 706 1079 191 284 31 . 329 448 655 1530 567 974 1258 5426 2175 Explosive 16061 | . . 173 520 186 1536 246 . 1158 . . 1217 1830 1245 . 835 989 . . . . . 409 1128 1939 . . 2650 Electromagnetic 5600 | . . . 48 40 . . . 329 . 119 481 . 328 . . 623 59 90 . 326 75 . . . 218 220 2644 Impact 483 | . . . . . . . . . . . 241 242 . . . . . . . . . . . . . . . Slashing . | . . . . . . . . . . . . . . . . . . . . . . . . . . . . Piercing . | . . . . . . . . . . . . . . . . . . . . . . . . . . . . Entropic 5611 | . . . . . . . . . . . . . . . . . . . . . . . . 554 1685 2358 1014 Highest Corruption 56 | . 2 2 . . . 4 4 15 15 18 5 6 10 10 32 7 8 8 8 8 . . 3 4 16 10 56 Average Corruption 7 | . 2 2 . . . 1 4 5 15 15 3 5 7 9 9 5 7 8 8 8 . . 3 3 13 7 32 Corruption Purged 20 | . . . . . . . . . . . . . . 10 . . . . . . . . . . . 10 . Corruption Blocked . | . . . . . . . . . . . . . . . . . . . . . . . . . . . . Effects 647 | . 3 14 . . . 11 42 60 13 36 49 47 22 10 11 28 34 21 7 28 . . 27 6 73 25 80 Message Errors 153 | . . 7 . . . 5 11 23 3 9 13 6 5 2 3 5 7 6 3 8 . . 2 2 13 9 11 Matter Fused 142 | . 1 . . . . 2 13 12 4 12 9 9 6 4 2 8 5 5 1 4 . . 9 . 21 4 11 Heat Flow Errors 74 | . . 2 . . . 1 7 8 1 2 4 5 2 1 . 3 6 3 1 2 . . 6 . 8 2 10 Energy Discharges 68 | . 1 2 . . . . . 6 2 6 4 9 1 2 . 3 4 2 1 6 . . 1 1 8 3 6 Parts Rejected 11 | . . . . . . 1 . . . . 3 1 3 . . . . . . . . . . . 1 . 2 Data Loss (minor) 74 | . . . . . . 2 5 8 2 5 9 3 2 . 2 5 4 2 1 3 . . 5 . 7 2 7 Data Loss (major) 38 | . . 2 . . . . 4 2 1 1 3 5 1 . . . 5 1 . 1 . . 3 1 1 2 5 Misfires 20 | . 1 . . . . . . 1 . 1 . 3 . . . 1 2 . . 2 . . . . 7 . 2 Alerts 16 | . . 1 . . . . 2 . . . . 1 . 1 1 1 1 2 . 1 . . 1 2 1 . 1 Misdirections 6 | . . . . . . . . . . . . . . . . . . . . . . . . . . . 6 Weapon Failures 45 | . . . . . . . . . . . 4 5 2 . 3 2 . . . 1 . . . . 6 3 19 Overload Shots 2 | . . . . . . . . . . . . . . . . . . . . . . . . . . . 2 Overflow Damage 2056 | . . 8 . 26 104 69 . 258 . 61 230 105 15 46 46 162 . . 64 46 7 4 47 35 208 462 53 Projectiles 1474 | . . 8 . 26 26 51 . 243 . 61 14 23 . 42 11 123 . . 64 46 7 4 . 12 208 462 43 Explosions 341 | . . . . . 78 18 . 15 . . 29 32 15 . 35 39 . . . . . . 47 23 . . 10 Melee 241 | . . . . . . . . . . . 187 50 . 4 . . . . . . . . . . . . . Knockbacks 102 | . 1 . . . 10 8 . 12 . . 19 12 . 1 17 16 . . . . . 1 2 1 2 . . Impact 4 | . 1 . . . . . . . . . 1 1 . 1 . . . . . . . . . . . . . Kinetic 93 | . . . . . 10 8 . 12 . . 17 8 . . 16 16 . . . . . 1 2 1 2 . . Secondary 5 | . . . . . . . . . . . 1 3 . . 1 . . . . . . . . . . . . Self-Inflicted Damage 847 | . . 48 152 . . 34 . 80 . . 104 30 . . 35 18 . . . . . . . . . . 346 Shots 34 | . . 2 5 . . 2 . 3 . . 2 1 . . . 1 . . . . . . . . . . 18 Rammed 24 | . 2 . . 5 5 2 . . . . . . . 3 . 1 . . . . . . 1 . . . 5 Targets Rammed 27 | . 2 . 1 7 5 2 . . . . . . . 3 . 1 . . . . . . 1 . . . 5 Kicked . | . . . . . . . . . . . . . . . . . . . . . . . . . . . . Crushed 3 | . . . 1 2 . . . . . . . . . . . . . . . . . . . . . . . Highest Temperature 614 | . 261 210 267 303 614 106 224 245 247 390 539 462 365 247 183 304 258 326 180 264 235 260 365 120 386 345 320 Average Temperature 101 | . 65 78 88 82 160 23 76 75 133 139 149 140 130 64 69 71 51 101 151 112 93 82 112 34 112 75 93 Received Heat Transfer 7938 | . 276 60 276 210 1026 369 140 423 . 36 1054 162 141 36 477 708 18 9 . . 10 108 100 293 225 226 1555 Effects 37 | . . . 2 1 18 . . . . 1 9 1 2 . . . . . . . . . 2 . 1 . . Shutdowns 7 | . . . . . 2 . . . . . 4 . 1 . . . . . . . . . . . . . . Energy Bleed 4 | . . . . 1 . . . . . . 2 . . . . . . . . . . . . . 1 . . Interference 7 | . . . 2 . 2 . . . . 1 . . . . . . . . . . . . 2 . . . . Matter Decay 4 | . . . . . 1 . . . . . 3 . . . . . . . . . . . . . . . . Short Circuit 4 | . . . . . 2 . . . . . . 1 1 . . . . . . . . . . . . . . Damage (minor) 2 | . . . . . 2 . . . . . . . . . . . . . . . . . . . . . . Damage (major) 8 | . . . . . 8 . . . . . . . . . . . . . . . . . . . . . . Damage (core) 1 | . . . . . 1 . . . . . . . . . . . . . . . . . . . . . . Siege Activations 8 | . . . . . . . . . . . . . 1 1 . 1 . . . . . . . . . . 5 Total Turns 373 | . . . . . . . . . . . . . 55 13 . 74 . . . . . . . . . . 231 Longest Duration 112 | . . . . . . . . . . . . . 55 13 . 74 . . . . . . . . . . 112 Robots Corrupted 20 | . . . . . . . . 2 . . . . 1 . . . . 1 . 1 . . . . . 1 14 Combat Hostiles 18 | . . . . . . . . . . . . . 1 . . . . 1 . 1 . . . . . 1 14 Parts Fried 49 | . . . . . . . . 6 . 2 3 1 . . . 3 . 1 . 1 . . . . 1 . 31 Impact Corruptions 6 | . . . . . . . . . . . 3 2 . 1 . . . . . . . . . . . . . Robots Melted 15 | . . 1 1 . 1 . . . . . . . . . 1 1 . . . . . . 1 1 2 4 2 Combat Hostiles 12 | . . . . . . . . . . . . . . . 1 1 . . . . . . 1 1 2 4 2 Parts Melted 67 | . 1 1 4 4 9 . . 2 . 1 1 . . 2 2 1 . . . 1 1 . . . 6 22 9 Heat Transferred 35125 | . 1295 740 1482 2751 3219 518 148 999 . 148 3670 852 962 1480 259 296 50 . 450 650 685 1527 611 1051 1750 7106 2426 Parts Sabotaged 2 | . . . . . . . . . . . . . . . . . . . . . . . . . . . 2 Parts Stolen . | . . . . . . . . . . . . . . . . . . . . . . . . . . . . Parts Stripped . | . . . . . . . . . . . . . . . . . . . . . . . . . . . . Power Chain Reactions 2 | . . . . 1 . . . . . . . . . . . . . . . . . . . . . . 1 Missiles Intercepted . | . . . . . . . . . . . . . . . . . . . . . . . . . . . . Alert | -11 -10 -10 -9 -9 -8 -7 -7 -7 -7 -6 -6 -6 -6 -6 -6 -5 -5 -5 -5 -4 -4 -4 -4 -4 -3 -3 -3 ------- Run | Scr Mat Min Mat Sto Mat Fac Low Low Dat Pro Fac Ext Cet Arc Hub Fac Upp Upp Zhi Pro Fac Upp Upp War Pro Res Tes Peak Influence 1901 | 30 250 153 588 840 588 413 . . . . 1119 1392 1192 678 948 643 . . . . 186 . . . . 805 1901 Initial 779 | . 19 53 . 248 225 267 . . . . . 537 779 466 168 447 . . . . 31 . . . . 73 450 Average 449 | 16 97 45 252 573 286 269 . . . . 504 743 1017 594 669 319 . . . . 64 . . . . 448 944 Maximum Alert Level 5 | . 1 . 2 3 2 2 . . . . 4 4 4 2 3 2 . . . . . . . . . 3 5 Low Security (%) 27 | 100 93 100 57 . 31 3 . . . . 26 . . . 4 22 . . . . 100 . . . . 14 . Level 1 21 | . 6 . 7 6 49 91 . . . . 16 12 . . 16 38 . . . . . . . . . 30 . Level 2 30 | . . . 35 70 18 5 . . . . 25 46 . 100 17 39 . . . . . . . . . 40 43 Level 3 14 | . . . . 23 . . . . . . 30 25 68 . 62 . . . . . . . . . . 14 21 Level 4 4 | . . . . . . . . . . . . 16 31 . . . . . . . . . . . . . 28 Level 5 . | . . . . . . . . . . . . . . . . . . . . . . . . . . . 6 High Security . | . . . . . . . . . . . . . . . . . . . . . . . . . . . . Max Security . | . . . . . . . . . . . . . . . . . . . . . . . . . . . . Squads Dispatched 97 | . 5 . 4 7 7 9 . 1 . . 16 6 . . 6 7 . . . . . . 1 . 1 7 20 Investigation 25 | . 2 . 4 4 4 1 . . . . 3 2 . . 4 . . . . . . . . . . . 1 Extermination 14 | . . . . . . 4 . . . . 3 . . . . 1 . . . . . . . . . 3 3 Reinforcement 33 | . 3 . . 3 3 4 . . . . 6 1 . . 1 5 . . . . . . . . . . 7 Assault 18 | . . . . . . . . 1 . . 3 3 . . 1 1 . . . . . . 1 . 1 1 6 Garrison 7 | . . . . . . . . . . . 1 . . . . . . . . . . . . . . 3 3 Intercept . | . . . . . . . . . . . . . . . . . . . . . . . . . . . . Searches Triggered . | . . . . . . . . . . . . . . . . . . . . . . . . . . . . Data Miner Redirects 19 | . . . . . . . . . . . 5 4 . . 4 1 . . . . . . . . . 1 4 Construction Impeded 5 | . . . . 1 . . . . . . . 1 . . . 2 . . . . . . . . . . 1 Haulers Reinforced 4 | . . . . . . 1 . . . . 1 . . . 1 1 . . . . . . . . . . . Active Scanning Responses . | . . . . . . . . . . . . . . . . . . . . . . . . . . . . Cargo Convoy Interrupts 1 | . . . . . . . . . . . 1 . . . . . . . . . . . . . . . . Stealth | -11 -10 -10 -9 -9 -8 -7 -7 -7 -7 -6 -6 -6 -6 -6 -6 -5 -5 -5 -5 -4 -4 -4 -4 -4 -3 -3 -3 --------- Run | Scr Mat Min Mat Sto Mat Fac Low Low Dat Pro Fac Ext Cet Arc Hub Fac Upp Upp Zhi Pro Fac Upp Upp War Pro Res Tes Distress Signals 17 | . . . . 3 1 3 . . . . . . 2 . 4 1 . . . . . . . . . . 3 Communications Jammed . | . . . . . . . . . . . . . . . . . . . . . . . . . . . . Distress Signals . | . . . . . . . . . . . . . . . . . . . . . . . . . . . . Times Spotted 690 | . 29 5 33 41 58 21 2 31 . 5 56 52 27 22 29 33 1 2 . 2 6 18 14 44 23 41 95 Peak Tracking Total 19 | . 4 3 5 5 7 4 1 9 . 2 8 10 5 1 5 6 1 2 . 2 2 5 9 19 7 5 9 Tactical Retreats 32 | . . . . 1 8 1 . 3 . . 3 4 . . . 2 . . . . 1 1 1 1 . 4 2 Traps | -11 -10 -10 -9 -9 -8 -7 -7 -7 -7 -6 -6 -6 -6 -6 -6 -5 -5 -5 -5 -4 -4 -4 -4 -4 -3 -3 -3 ------- Run | Scr Mat Min Mat Sto Mat Fac Low Low Dat Pro Fac Ext Cet Arc Hub Fac Upp Upp Zhi Pro Fac Upp Upp War Pro Res Tes Traps Triggered 18 | . 2 . . 1 . 1 . . . . 4 3 . . 1 1 1 1 . . . . . . . . 3 Indirectly 2 | . . . . . . . . . . . . . . . . . . . . . . . . . . . 2 Trap Hack Attempts . | . . . . . . . . . . . . . . . . . . . . . . . . . . . . Triggered . | . . . . . . . . . . . . . . . . . . . . . . . . . . . . Disarmed 1 | . . . . . . . . . . . . 1 . . . . . . . . . . . . . . . Reprogrammed . | . . . . . . . . . . . . . . . . . . . . . . . . . . . . Reused . | . . . . . . . . . . . . . . . . . . . . . . . . . . . . Traps Extracted . | . . . . . . . . . . . . . . . . . . . . . . . . . . . . Installed 5 | . . . . . . . . 5 . . . . . . . . . . . . . . . . . . . Triggered 24 | . . . . . . . 2 . . . 2 . . . . . . . . . . . . 20 . . . Machines | -11 -10 -10 -9 -9 -8 -7 -7 -7 -7 -6 -6 -6 -6 -6 -6 -5 -5 -5 -5 -4 -4 -4 -4 -4 -3 -3 -3 ---------- Run | Scr Mat Min Mat Sto Mat Fac Low Low Dat Pro Fac Ext Cet Arc Hub Fac Upp Upp Zhi Pro Fac Upp Upp War Pro Res Tes Machines Disabled 63 | . . . 4 1 1 1 . 1 . . 10 4 4 4 9 4 . . 1 . . 1 3 1 . 1 13 Max in Single Turn 3 | . . . 1 1 1 1 . 1 . . 2 1 1 1 2 1 . . 1 . . 1 1 1 . 1 3 Garrison Access 6 | . . . . . 1 . . . . . 2 . . . 1 1 . . . . . . . . . 1 . Network Hub 1 | . . . . . . . . . . . . . . . 1 . . . . . . . . . . . . Machines Sabotaged 1 | . . . . . . . . . . . . . . . 1 . . . . . . . . . . . . Garrisons Compromised 1 | . . . . . . . . . . . 1 . . . . . . . . . . . . . . . . Overloaded Fab Kills . | . . . . . . . . . . . . . . . . . . . . . . . . . . . . Hacking | -11 -10 -10 -9 -9 -8 -7 -7 -7 -7 -6 -6 -6 -6 -6 -6 -5 -5 -5 -5 -4 -4 -4 -4 -4 -3 -3 -3 --------- Run | Scr Mat Min Mat Sto Mat Fac Low Low Dat Pro Fac Ext Cet Arc Hub Fac Upp Upp Zhi Pro Fac Upp Upp War Pro Res Tes Machines Accessed 101 | . 7 . 11 15 9 5 1 . 4 . 12 5 1 . 4 3 2 . 3 1 3 . . 4 . 6 5 Terminals 54 | . 5 . 7 12 6 1 . . . . 4 5 1 . 3 1 1 . . 1 3 . . . . 2 2 Fabricators 6 | . . . . . . 2 . . . . 2 . . . . . . . . . . . . . . 1 1 Repair Stations 7 | . . . 2 2 . 1 . . . . . . . . . . . . . . . . . . . 1 1 Recycling Units 14 | . 2 . 2 1 2 1 . . . . 4 . . . . . . . . . . . . . . 2 . Scanalyzers 2 | . . . . . . . . . . . . . . . . 1 . . . . . . . . . . 1 Garrison Access 5 | . . . . . 1 . . . . . 2 . . . 1 1 . . . . . . . . . . . Total Hacks 302 | . 20 . 43 33 30 9 1 . 26 . 25 13 1 . 10 21 2 . 12 1 7 . . 8 . 14 26 Successful 154 | . 6 . 26 14 11 3 1 . 26 . 6 1 . . 6 13 2 . 12 1 . . . 8 . 4 14 Failed 147 | . 13 . 17 19 19 6 . . . . 19 12 1 . 4 8 . . . . 7 . . . . 10 12 Catastrophic 36 | . 1 . 2 6 4 . . . . . 5 4 1 . . 1 . . . . 5 . . . . 6 1 Database Lockouts 1 | . 1 . . . . . . . . . . . . . . . . . . . . . . . . . . Manual 111 | . 14 . 22 11 8 2 . . . . 6 8 1 . 8 15 . . . . 4 . . 1 . 4 7 Terminals 172 | . 14 . 27 29 20 2 . . . . 9 13 1 . 9 18 1 . . 1 7 . . . . 3 18 Fabricators 10 | . . . . . . 4 . . . . 3 . . . . . . . . . . . . . . 1 2 Repair Stations 20 | . . . 10 3 . 1 . . . . . . . . . . . . . . . . . . . 4 2 Recycling Units 40 | . 6 . 6 1 9 2 . . . . 10 . . . . . . . . . . . . . . 6 . Scanalyzers 6 | . . . . . . . . . . . . . . . . 2 . . . . . . . . . . 4 Garrison Access 6 | . . . . . 1 . . . . . 3 . . . 1 1 . . . . . . . . . . . Terminal Hacks 107 | . 2 . 14 11 7 1 1 . 26 . 1 1 . . 2 10 2 . 12 1 . . . 8 . 1 7 Record 24 | . . . . . . . . . 11 . . . . . . . 1 . 4 1 . . . 7 . . . Part Schematic 13 | . . . 1 . . . . . 8 . . . . . . . . . 4 . . . . . . . . Robot Schematic 4 | . . . . . . . . . 4 . . . . . . . . . . . . . . . . . . Robot Analysis 12 | . 1 . 9 . 2 . . . . . . . . . . . . . . . . . . . . . . Prototype ID Bank 16 | . . . 3 2 2 . . . 3 . 1 . . . . . . . 4 . . . . . . . 1 Open Door 7 | . . . . 4 . . 1 . . . . . . . . . 1 . . . . . . 1 . . . Level Access Points 2 | . . . . . . . . . . . . . . . 1 . . . . . . . . . . . 1 Branch Access Points 4 | . . . 1 1 . 1 . . . . . . . . . 1 . . . . . . . . . . . Emergency Access Points 2 | . . . . . . . . . . . . . . . . 1 . . . . . . . . . . 1 Machine Index 2 | . . . . . . . . . . . . . . . 1 . . . . . . . . . . 1 . Terminal Index 1 | . . . . . . . . . . . . . . . . 1 . . . . . . . . . . . Unreport Threat 9 | . 1 . . 2 1 . . . . . . . . . . 5 . . . . . . . . . . . Locate Traps 2 | . . . . 1 . . . . . . . . . . . 1 . . . . . . . . . . . Disarm Traps 1 | . . . . . . . . . . . . 1 . . . . . . . . . . . . . . . Hauler Manifests 3 | . . . . 1 1 . . . . . . . . . . . . . . . . . . . . . 1 Registered Components 1 | . . . . . . . . . . . . . . . . 1 . . . . . . . . . . . Zone Layout 2 | . . . . . 1 . . . . . . . . . . . . . . . . . . . . . 1 Protovariant Controls 2 | . . . . . . . . . . . . . . . . . . . . . . . . . . . 2 Fabricator Hacks . | . . . . . . . . . . . . . . . . . . . . . . . . . . . . Repair Station Hacks 14 | . . . 9 2 . . . . . . . . . . . . . . . . . . . . . 1 2 Scan Component 8 | . . . 5 1 . . . . . . . . . . . . . . . . . . . . . 1 1 Repair 6 | . . . 4 1 . . . . . . . . . . . . . . . . . . . . . . 1 Recycling Unit Hacks 8 | . 1 . 1 1 2 1 . . . . 2 . . . . . . . . . . . . . . . . Retrieve Components 8 | . 1 . 1 1 2 1 . . . . 2 . . . . . . . . . . . . . . . . Scanalyzer 4 | . . . . . . . . . . . . . . . . 2 . . . . . . . . . . 2 Insert Component 3 | . . . . . . . . . . . . . . . . 1 . . . . . . . . . . 2 Analyze 1 | . . . . . . . . . . . . . . . . 1 . . . . . . . . . . . Garrison Access Hacks 4 | . . . . . 1 . . . . . 1 . . . 1 1 . . . . . . . . . . . Seal Access 4 | . . . . . 1 . . . . . 1 . . . 1 1 . . . . . . . . . . . Unauthorized Hacks 17 | . 3 . 2 . 1 1 . . . . 2 . . . 3 . . . . . . . . . . 2 3 Terminals 6 | . . . . . . . . . . . . . . . 3 . . . . . . . . . . . 3 Track 1 | . . . . . . . . . . . . . . . . . . . . . . . . . . . 1 Botnet 1 | . . . . . . . . . . . . . . . . . . . . . . . . . . . 1 Operators 1 | . . . . . . . . . . . . . . . . . . . . . . . . . . . 1 Sabotage 3 | . . . . . . . . . . . . . . . 3 . . . . . . . . . . . . Fabricators 1 | . . . . . . 1 . . . . . . . . . . . . . . . . . . . . . Haulers 1 | . . . . . . 1 . . . . . . . . . . . . . . . . . . . . . Repair Stations . | . . . . . . . . . . . . . . . . . . . . . . . . . . . . Recycling Units 10 | . 3 . 2 . 1 . . . . . 2 . . . . . . . . . . . . . . 2 . Reject 2 | . 1 . . . . . . . . . . . . . . . . . . . . . . . . 1 . Recyclers 2 | . . . . . . . . . . . 1 . . . . . . . . . . . . . . 1 . Mask 2 | . 1 . . . . . . . . . 1 . . . . . . . . . . . . . . . . Tunnel 4 | . 1 . 2 . 1 . . . . . . . . . . . . . . . . . . . . . . Scanalyzers . | . . . . . . . . . . . . . . . . . . . . . . . . . . . . Garrison Access . | . . . . . . . . . . . . . . . . . . . . . . . . . . . . Data Cores Recovered 1 | . . . . 1 . . . . . . . . . . . . . . . . . . . . . . . Used . | . . . . . . . . . . . . . . . . . . . . . . . . . . . . Hacking Detections 73 | . 7 . 11 11 8 5 . . . . 10 5 1 . . 1 1 . . . 3 . . . . 6 4 Full Trace Events 17 | . . . 4 5 4 1 . . . . 2 1 . . . . . . . . . . . . . . . Feedback Events 1 | . . . . . . . . . . . . 1 . . . . . . . . . . . . . . . Corruption 1 | . . . . . . . . . . . . 1 . . . . . . . . . . . . . . . Feedback Blocked . | . . . . . . . . . . . . . . . . . . . . . . . . . . . . Robot Schematics Acquired 5 | . . . . . . . . . 4 . . . . . . . . . . . . . . . . . 1 Robots Built . | . . . . . . . . . . . . . . . . . . . . . . . . . . . . Authchips . | . . . . . . . . . . . . . . . . . . . . . . . . . . . . Time . | . . . . . . . . . . . . . . . . . . . . . . . . . . . . Total Robot Build Rating . | . . . . . . . . . . . . . . . . . . . . . . . . . . . . Part Schematics Acquired 18 | . . . 1 . . . . . 8 . . . . . . 1 . . 4 . . . . . . . 4 Parts Built . | . . . . . . . . . . . . . . . . . . . . . . . . . . . . Authchips . | . . . . . . . . . . . . . . . . . . . . . . . . . . . . Time . | . . . . . . . . . . . . . . . . . . . . . . . . . . . . Total Part Build Rating . | . . . . . . . . . . . . . . . . . . . . . . . . . . . . Parts Repaired 6 | . . . 4 1 . . . . . . . . . . . . . . . . . . . . . . 1 Time 192 | . . . 116 32 . . . . . . . . . . . . . . . . . . . . . . 44 Parts Recycled . | . . . . . . . . . . . . . . . . . . . . . . . . . . . . Recycled Matter . | . . . . . . . . . . . . . . . . . . . . . . . . . . . . Retrieved Matter . | . . . . . . . . . . . . . . . . . . . . . . . . . . . . Retrieved Components 40 | . 9 . 6 9 9 5 . . . . 2 . . . . . . . . . . . . . . . . Parts Scanalyzed 1 | . . . . . . . . . . . . . . . . 1 . . . . . . . . . . . Part Schematics Acquired 1 | . . . . . . . . . . . . . . . . 1 . . . . . . . . . . . Parts Damaged 1 | . . . . . . . . . . . . . . . . 1 . . . . . . . . . . . Bothacking | -11 -10 -10 -9 -9 -8 -7 -7 -7 -7 -6 -6 -6 -6 -6 -6 -5 -5 -5 -5 -4 -4 -4 -4 -4 -3 -3 -3 ------------ Run | Scr Mat Min Mat Sto Mat Fac Low Low Dat Pro Fac Ext Cet Arc Hub Fac Upp Upp Zhi Pro Fac Upp Upp War Pro Res Tes Used RIF Installer . | . . . . . . . . . . . . . . . . . . . . . . . . . . . . Robots Hacked . | . . . . . . . . . . . . . . . . . . . . . . . . . . . . Non-combat . | . . . . . . . . . . . . . . . . . . . . . . . . . . . . Combat . | . . . . . . . . . . . . . . . . . . . . . . . . . . . . Robot Hacks Applied . | . . . . . . . . . . . . . . . . . . . . . . . . . . . . Relay Couplers Released 4 | . . . . . 2 . . . . . 1 . . . . . . . . . . . . . . 1 . Machine Destruction 4 | . . . . . 2 . . . . . 1 . . . . . . . . . . . . . . 1 . Fabnet Peak Effective % . | . . . . . . . . . . . . . . . . . . . . . . . . . . . . Robots Rewired 20 | . . . . . . . . 2 . . . 6 . . . . . . . . . 2 4 4 2 . . Allies Hacked . | . . . . . . . . . . . . . . . . . . . . . . . . . . . . Hacks Repelled . | . . . . . . . . . . . . . . . . . . . . . . . . . . . . Allies | -11 -10 -10 -9 -9 -8 -7 -7 -7 -7 -6 -6 -6 -6 -6 -6 -5 -5 -5 -5 -4 -4 -4 -4 -4 -3 -3 -3 -------- Run | Scr Mat Min Mat Sto Mat Fac Low Low Dat Pro Fac Ext Cet Arc Hub Fac Upp Upp Zhi Pro Fac Upp Upp War Pro Res Tes Total Allies 40 | . . 1 . 10 . 2 . 2 . 1 . 12 . . . . . . . . . 2 4 4 2 . . Largest Group 10 | . . 1 . 10 . 2 . 2 . 1 . 6 1 . . . . . . . . 2 4 7 2 . . Highest-Rated Group 336 | . . 31 . 88 . 62 . 60 . 96 . 324 146 . . . . . . . . 98 171 336 112 . . Highest-Rated Ally 159 | . . 31 . 16 . 31 . 30 . 96 . 159 146 . . . . . . . . 49 49 68 64 . . Total Orders 11 | . . . . 2 9 . . . . . . . . . . . . . . . . . . . . . . EXPLORE 9 | . . . . 1 8 . . . . . . . . . . . . . . . . . . . . . . RETURN 2 | . . . . 1 1 . . . . . . . . . . . . . . . . . . . . . . Ally Attacks 375 | . . . . 65 . 22 . . . 11 . 155 23 . . . . . . . . 18 18 54 9 . . Total Damage 9754 | . . . . 610 . 348 . . . 368 . 3564 873 . . . . . . . . 675 651 2340 325 . . Kills 71 | . . . . 7 . 3 . . . 2 . 34 8 . . . . . . . . 3 3 11 . . . Allies Corrupted 4 | . . . . . 1 . . 2 . . . . . . . . . . . . . . . . 1 . . Allies Melted 2 | . . 1 . . . . . . . . . . . . . . . . . . . . . 1 . . . Intel | -11 -10 -10 -9 -9 -8 -7 -7 -7 -7 -6 -6 -6 -6 -6 -6 -5 -5 -5 -5 -4 -4 -4 -4 -4 -3 -3 -3 ------- Run | Scr Mat Min Mat Sto Mat Fac Low Low Dat Pro Fac Ext Cet Arc Hub Fac Upp Upp Zhi Pro Fac Upp Upp War Pro Res Tes Robot Analysis Total 12 | . 1 . 9 . 2 . . . . . . . . . . . . . . . . . . . . . . Derelict Logs Recovered 14 | . . 2 . . . . 2 2 . 2 . . . . . . 2 1 . . . . 3 . . . . Drone Launches 25 | . . . . 16 9 . . . . . . . . . . . . . . . . . . . . . . Drone Recoveries 9 | . . . . 2 7 . . . . . . . . . . . . . . . . . . . . . . Exploration | -11 -10 -10 -9 -9 -8 -7 -7 -7 -7 -6 -6 -6 -6 -6 -6 -5 -5 -5 -5 -4 -4 -4 -4 -4 -3 -3 -3 ------------- Run | Scr Mat Min Mat Sto Mat Fac Low Low Dat Pro Fac Ext Cet Arc Hub Fac Upp Upp Zhi Pro Fac Upp Upp War Pro Res Tes Turns Passed 35322 | 162 1267 805 2290 1952 1859 1822 1988 2330 266 947 2747 1934 693 547 516 1284 1113 573 255 796 496 1159 1616 1357 1720 1333 1495 Spaces Moved 15609 | 64 619 338 692 615 583 658 930 934 79 414 1086 779 294 198 163 559 770 425 163 566 319 750 1112 609 737 614 539 Core 13 | . . . . . . . . 12 . . . . . . . . . . . . . . . . . . 1 Treads 5435 | . 431 65 645 615 583 140 . . . . . 254 294 198 163 238 . . . . . . . 294 737 240 538 Legs 2283 | 64 48 . . . . . . 67 79 414 1086 525 . . . . . . . . . . . . . . . Wheels 7878 | . 140 273 47 . . 518 930 855 . . . . . . . 321 770 425 163 566 319 750 1112 315 . 374 . Hover . | . . . . . . . . . . . . . . . . . . . . . . . . . . . . Flight . | . . . . . . . . . . . . . . . . . . . . . . . . . . . . Fastest Speed 115 | 120 120 175 215 240 240 135 190 140 260 190 120 190 160 160 160 115 115 130 130 130 128 128 128 128 165 129 145 Average Speed 177 | 120 165 205 238 240 241 201 201 213 329 208 176 210 168 160 186 143 127 130 130 130 128 128 128 187 202 146 153 Slowest Speed 1800 | 120 320 320 240 240 405 480 220 1800 330 260 260 320 240 160 240 185 130 130 130 130 130 128 128 256 255 270 1700 Overloaded Moves . | . . . . . . . . . . . . . . . . . . . . . . . . . . . . Propulsion Burnouts . | . . . . . . . . . . . . . . . . . . . . . . . . . . . . Robots Hopped . | . . . . . . . . . . . . . . . . . . . . . . . . . . . . Cave-ins Triggered 1 | . . . . . . . . . . 1 . . . . . . . . . . . . . . . . . Exploration Rate (%) 62 | 4 97 63 63 93 59 19 90 98 69 64 32 87 84 78 21 13 75 61 60 78 11 83 99 79 79 19 72 Regions Visited 27 Branch Regions 19 Pre-discovered Areas 12 | . 1 1 2 . 1 . 2 . 1 . . . . . . . . . 3 . . . . 1 . . . Known Exits Taken 8 | . . . 1 . . 1 . 1 . . 1 . . . 1 1 . . . . . . . . 1 1 . Unknown Exits Taken 19 | 1 1 1 . 1 1 . 1 . 1 1 . 1 1 1 . . 1 1 1 1 1 1 1 1 . . . Scrap Searched 25 | . . 1 . . . . 6 4 . 1 . . . . . . 1 1 . 4 . 4 2 . 1 . . Spaces Dug 182 | . . 11 21 . 9 1 . 5 . . 18 . 16 . 3 6 16 2 . 2 6 36 . 3 4 9 14 Terrain Destroyed 1847 | . . 11 111 71 104 48 1 109 . 42 129 96 158 2 68 111 60 6 . 17 13 75 71 46 52 57 389 Melee 26 | . . . . . . 1 . . . . 18 . 1 . 3 3 . . . . . . . . . . . Projectile 436 | . . . . . 3 4 1 32 . 4 23 14 7 2 18 46 46 6 . 17 13 24 8 24 52 57 35 AOE 1383 | . . 11 111 71 101 43 . 77 . 38 88 82 150 . 46 62 14 . . . . 51 63 22 . . 353 Terrain Rammed 1 | . . . . . . . . . . . . . . . 1 . . . . . . . . . . . . Walls Destroyed 1 | . . . . . . . . . . . . . . . 1 . . . . . . . . . . . . Machines Disabled . | . . . . . . . . . . . . . . . . . . . . . . . . . . . . Actions | -11 -10 -10 -9 -9 -8 -7 -7 -7 -7 -6 -6 -6 -6 -6 -6 -5 -5 -5 -5 -4 -4 -4 -4 -4 -3 -3 -3 --------- Run | Scr Mat Min Mat Sto Mat Fac Low Low Dat Pro Fac Ext Cet Arc Hub Fac Upp Upp Zhi Pro Fac Upp Upp War Pro Res Tes Total 20503 | 98 742 395 1248 947 833 1067 1006 1106 86 468 1565 969 410 355 261 823 850 434 199 592 379 872 1272 759 869 888 1010 Wait 1804 | . 15 10 416 204 80 284 18 7 . 19 141 18 8 71 16 29 3 . . 4 28 40 103 16 30 71 173 Move 15581 | 63 618 337 691 614 582 657 929 933 78 412 1085 778 293 197 162 558 769 424 162 565 318 749 1111 608 736 613 539 Hop . | . . . . . . . . . . . . . . . . . . . . . . . . . . . . Pick Up 274 | 2 14 7 20 6 14 14 8 6 1 7 27 1 13 4 5 23 9 1 3 . 1 2 2 12 19 22 31 Fast Attach 228 | . 6 2 7 6 6 14 6 10 1 2 36 13 7 7 . 24 3 . 10 . 6 2 3 10 6 22 19 Attach 139 | 1 1 3 3 . 11 4 1 8 3 5 12 1 10 . 4 10 . 1 2 . 1 . 3 6 7 10 32 Detach 32 | . 3 1 1 1 . 1 2 1 . . 2 2 2 . . 3 . . 4 . . . . 3 1 4 1 Swap 303 | . 6 3 21 13 17 10 2 6 1 5 30 13 11 4 19 39 11 . . 3 3 17 4 9 10 17 29 Drop 369 | . 11 3 31 15 14 22 15 3 2 1 53 14 13 10 4 37 9 . 12 . 7 5 3 24 6 33 22 Fire 1505 | 32 66 29 57 74 104 58 25 115 . 16 156 36 49 59 47 96 46 8 6 19 15 39 15 38 46 96 158 Melee 47 | . . . . . . 1 . . . . 23 12 4 . 3 3 . . . . . . . . . . 1 Ram 4 | . . . . . . 2 . . . . . . . . 1 . . . . . . . 1 . . . . Kick . | . . . . . . . . . . . . . . . . . . . . . . . . . . . . Crush 24 | . 2 . 1 7 5 . . . . . . . . 3 . 1 . . . . . . . . . . 5 Escape Stasis 8 | . . . . . . . . . . 1 . 7 . . . . . . . . . . . . . . . Rewire 173 | . . . . . . . . 12 . . . 74 . . . . . . . 1 . 18 27 33 8 . . Trap 5 | . . . . . . . . 5 . . . . . . . . . . . . . . . . . . . Miscellaneous 7 | . . . . 7 . . . . . . . . . . . . . . . . . . . . . . . Route ------- -11/Scrapyard -10/Materials (discovered 5 exits: *Mat x3 / [*Min x2]) -10/Mines (discovered 3 exits: *Mat x2 / [Exi]) -9/Materials (discovered 3 exits: Min / *Sto x2) -9/Storage (discovered 2 exits: *Mat / Rec) -8/Materials (discovered 3 exits: *Fac x3) -7/Factory (discovered 3 exits: *Fac / *Low x2) -7/Lower Caves -7/Lower Caves (discovered 2 exits: *Fac / *Dat) -7/Data Miner -6/Proximity Caves -6/Factory (discovered 4 exits: *Fac x2 / [*Low] / *Ext) -6/Extension (discovered 2 exits: *Fac / *Cet) -6/Cetus (discovered 2 exits: *Fac / [*Arc]) -6/Archives (discovered 3 exits: *Fac / *Hub x2) -6/Hub_04(d) (discovered 4 exits: *Fac x4) -5/Factory (discovered 3 exits: *Fac / *Upp x2) -5/Upper Caves -5/Upper Caves (discovered 2 exits: *Fac / *Zhi) -5/Zhirov -4/Proximity Caves -4/Factory (discovered 2 exits: Res / [*Upp]) -4/Upper Caves -4/Upper Caves (discovered 2 exits: *Res / *War) -4/Warlord -3/Proximity Caves -3/Research (discovered 3 exits: Res / Arm / *Tes) -3/Testing (discovered 1 exit: *Res) History --------- Turn | Location | Event 22 | -11/Scrapyard | Discovered new exit (range 3) 163 | -11/Scrapyard | Entered Materials 171 | -10/Materials | Discovered new exit (range 16) 351 | -10/Materials | Discovered new exit (range 14) 586 | -10/Materials | Discovered new exit (range 16) 795 | -10/Materials | Build established: Mutant 816 | -10/Materials | Central database locked down 883 | -10/Materials | Discovered new exit (range 15) 1259 | -10/Materials | Discovered new exit (range 12) 1291 | -10/Materials | Core integrity fell below 50% 1430 | -10/Materials | Entered Mines 1447 | -10/Mines | Deemed a non-threat by the Exiles lab entrance 1447 | -10/Mines | Discovered new exit (range 6) 1471 | -10/Mines | Discovered new exit (range 7) 1604 | -10/Mines | Learned Materials interactive machine intel 1736 | -10/Mines | Learned location of Zion (-6) 1763 | -10/Mines | Received a Mining Laser from a helpful Derelict 1787 | -10/Mines | YI-UF0 nonchalantly dropped a Grenade Launcher on the ground 1827 | -10/Mines | Destroyed YI-UF0 1838 | -10/Mines | Found Prototype Storage 1851 | -10/Mines | Identified YI-UF0's Bottomless Matter Pit 1933 | -10/Mines | Discovered new exit (range 13) 2235 | -10/Mines | Entered Materials 2235 | -9/Materials | Evolved 2 slots: Propulsion x1, Utility x1 2236 | -9/Materials | Loaded intel: 18 interactive machine locations 2378 | -9/Materials | Repaired Lgt. Treads 2405 | -9/Materials | Repaired Lgt. Treads 2742 | -9/Materials | Build established: Scavenger-Mutant 3115 | -9/Materials | Discovered new exit (range 14) 3638 | -9/Materials | Discovered new exit (range 9) 3705 | -9/Materials | Build established: Mutant 4267 | -9/Materials | Identified exit to Mines 4267 | -9/Materials | Identified exit to Storage 4323 | -9/Materials | Repaired Imp. Treads 4357 | -9/Materials | Repaired Hvy. Assault Rifle 4525 | -9/Materials | Entered Storage 4569 | -9/Storage | Identified exit to Recycling 5521 | -9/Storage | Assisted by bots powering up and referring to "LRC-V3" 6197 | -9/Storage | Discovered new exit (range 38) 6421 | -9/Storage | Repaired Imp. Treads 6477 | -9/Storage | Entered Materials 6477 | -8/Materials | Accompanied by 14 allies 6477 | -8/Materials | Evolved 2 slots: Utility x2 6739 | -8/Materials | Discovered new exit (range 39) 7491 | -8/Materials | Discovered new exit (range 8) 8033 | -8/Materials | Lost 3 parts (3u) 8088 | -8/Materials | Core integrity fell below 50% 8122 | -8/Materials | Core integrity fell below 20% 8294 | -8/Materials | Discovered new exit (range 8) 8336 | -8/Materials | Entered Factory 8336 | -7/Factory | Evolved 2 slots: Propulsion x1, Utility x1 8529 | -7/Factory | Build established: Scavenger-Mutant 8856 | -7/Factory | Build established: Mutant 9161 | -7/Factory | Allied Derelicts emerged from ambush trap array 9304 | -7/Factory | Build established: Scavenger-Mutant 9564 | -7/Factory | Identified exit to Lower Caves 9817 | -7/Factory | Discovered new exit (range 12) 10158 | -7/Factory | Entered Lower Caves 10233 | -7/Lower Caves | Attracted the attention of an 0b10 checkpoint 11437 | -7/Lower Caves | Encountered a Warlord checkpoint 11719 | -7/Lower Caves | Spotted B-75 Beast 11797 | -7/Lower Caves | Destroyed B-75 Beast 11816 | -7/Lower Caves | Lost 3 parts (2n1u) 11906 | -7/Lower Caves | Discovered new exit (range 10) 12133 | -7/Lower Caves | Build established: Derelict-Mutant 12146 | -7/Lower Caves | Entered another Lower Caves area 12154 | -7/Lower Caves | Attracted the attention of an 0b10 checkpoint 12286 | -7/Lower Caves | Discovered new exit (range 8) 13048 | -7/Lower Caves | Learned location of 1 exit from Factory 13069 | -7/Lower Caves | Identified exit to Data Miner 13724 | -7/Lower Caves | Build established: Mutant 13877 | -7/Lower Caves | Attracted the attention of an 0b10 outpost 13935 | -7/Lower Caves | Destroyed 8 combat bots 13964 | -7/Lower Caves | Lost 7 parts (3n3u1w) 13988 | -7/Lower Caves | Core integrity fell below 50% 14233 | -7/Lower Caves | System corruption reached 10% 14476 | -7/Lower Caves | Entered Data Miner 14476 | -7/Data Miner | Discovered new exit (range 6) 14543 | -7/Data Miner | Met Data Miner 14562 | -7/Data Miner | Build established: Scavenger-Mutant 14606 | -7/Data Miner | Learned location of Section 7 (-2) 14606 | -7/Data Miner | Acquired the access code to Warlord's prototype stash 14655 | -7/Data Miner | Received God Mode back door access code from Data Miner 14742 | -7/Data Miner | Entered Proximity Caves 14901 | -6/Proximity Caves | Learned Factory security intel 14963 | -6/Proximity Caves | Escorted by Enhanced Grunt 14963 | -6/Proximity Caves | Attracted the attention of an 0b10 checkpoint 15103 | -6/Proximity Caves | Lost 3 parts (2u1w) 15197 | -6/Proximity Caves | Learned location of 2 exits from Factory 15559 | -6/Proximity Caves | Spotted B-75 Beast 15659 | -6/Proximity Caves | Crushed by falling debris 15661 | -6/Proximity Caves | Discovered new exit (range 15) 15667 | -6/Proximity Caves | Core integrity fell below 20% 15689 | -6/Proximity Caves | Entered Factory 15689 | -6/Factory | Evolved 2 slots: Utility x1, Weapon x1 15690 | -6/Factory | Identified exit to Factory 15690 | -6/Factory | Identified exit to Extension 15690 | -6/Factory | Lost 3 parts (1n2u) 16208 | -6/Factory | Discovered new exit (range 8) 16372 | -6/Factory | Incoming investigation squad redirected 17004 | -6/Factory | Build established: Tank 17178 | -6/Factory | Cargo convoy interrupted 17381 | -6/Factory | Spotted B-75 Beast 17618 | -6/Factory | Destroyed B-75 Beast 17789 | -6/Factory | First assault squad dispatched 17805 | -6/Factory | Incoming assault squad redirected 17813 | -6/Factory | Incoming assault squad redirected 17847 | -6/Factory | Incoming assault squad redirected 17954 | -6/Factory | Incoming investigation squad redirected 17973 | -6/Factory | Assembled infested ambush trap array 18022 | -6/Factory | Destroyed 9 combat bots 18436 | -6/Factory | Entered Extension 18471 | -6/Extension | Build established: Mutant 18660 | -6/Extension | Rescued A7 18786 | -6/Extension | First assault squad dispatched 18815 | -6/Extension | Incoming assault squad redirected 19111 | -6/Extension | Rescued a captive Derelict 19126 | -6/Extension | Rescued a captive Derelict 19547 | -6/Extension | Spotted B-75 Beast 19553 | -6/Extension | Destroyed B-75 Beast 19566 | -6/Extension | Spotted B-75 Beast 19569 | -6/Extension | Destroyed B-75 Beast 19586 | -6/Extension | Disrupted transfer network 19808 | -6/Extension | Rescued a captive Derelict 19895 | -6/Extension | Build established: Scavenger-Tank 19915 | -6/Extension | Rescued a captive Derelict 19919 | -6/Extension | Rescued a captive Derelict 19954 | -6/Extension | Incoming investigation squad redirected 20209 | -6/Extension | Incoming assault squad redirected 20231 | -6/Extension | Incoming assault squad redirected 20312 | -6/Extension | Discovered exit to Factory (range 10) 20314 | -6/Extension | Discovered new exit (range 6) 20370 | -6/Extension | Entered Cetus 20370 | -6/Cetus | Accompanied by 1 ally (A7) 20375 | -6/Cetus | Acquired a Cetus Manufacturing Module code from A7 20401 | -6/Cetus | Spotted Cetus Guard 20401 | -6/Cetus | Spotted Cetus Guard 20408 | -6/Cetus | Allies destroyed Cetus Guard 20408 | -6/Cetus | Spotted Cetus Guard 20417 | -6/Cetus | Destroyed Cetus Guard 20417 | -6/Cetus | Spotted Cetus Guard 20421 | -6/Cetus | Allies destroyed Cetus Guard 20430 | -6/Cetus | Allies destroyed Cetus Guard 20532 | -6/Cetus | Cetus Manufacturing Module disabled 20632 | -6/Cetus | Escorted A7 to Cetus Mainframe 20692 | -6/Cetus | Failed to start Cetus Manufacturing Module 20703 | -6/Cetus | Build established: Scavenger-Mutant 20758 | -6/Cetus | Extracted ID and sensor layout for unrecognized location from A7's data core 20778 | -6/Cetus | Discovered new exit (range 16) 20822 | -6/Cetus | System corruption reached 10% 20858 | -6/Cetus | Spotted Cetus Guard 20858 | -6/Cetus | Spotted Cetus Guard 20864 | -6/Cetus | Spotted Cetus Guard 20868 | -6/Cetus | Spotted Cetus Guard 20874 | -6/Cetus | Destroyed Cetus Guard 20890 | -6/Cetus | Destroyed Cetus Guard 20905 | -6/Cetus | Destroyed Cetus Guard 20915 | -6/Cetus | Destroyed Cetus Guard 20933 | -6/Cetus | Discovered exit to Factory (range 15) 20941 | -6/Cetus | Lost 6 parts (4u2w) 20941 | -6/Cetus | Met Revision 17 21063 | -6/Cetus | Entered Archives 21084 | -6/Archives | Core integrity fell below 50% 21105 | -6/Archives | Build established: Scavenger-Tank 21141 | -6/Archives | Discovered new exit (range 16) 21170 | -6/Archives | Discovered new exit (range 14) 21449 | -6/Archives | Discovered exit to Factory (range 16) 21610 | -6/Archives | Entered Hub_04(d) 21776 | -6/Hub_04(d) | Incoming investigation squad redirected 21781 | -6/Hub_04(d) | Network Hub disabled 21808 | -6/Hub_04(d) | Incoming investigation squad redirected 21835 | -6/Hub_04(d) | Destroyed 7 combat bots 21960 | -6/Hub_04(d) | First assault squad dispatched 21976 | -6/Hub_04(d) | Incoming assault squad redirected 22069 | -6/Hub_04(d) | Incoming investigation squad redirected 22103 | -6/Hub_04(d) | Spotted Lightning 22125 | -6/Hub_04(d) | System corruption reached 30% 22125 | -6/Hub_04(d) | Spotted Lightning 22126 | -6/Hub_04(d) | Spotted Lightning 22126 | -6/Hub_04(d) | Entered Factory 22126 | -5/Factory | Evolved 2 slots: Propulsion x2 22463 | -5/Factory | Identified exit to Upper Caves 22470 | -5/Factory | Discovered new exit (range 15) 22552 | -5/Factory | Found Prototype Launcher 22552 | -5/Factory | Identified Mni. Smartbomb Launcher 22660 | -5/Factory | Lost 4 parts (1p1n1u1w) 22719 | -5/Factory | Lost 4 parts (2n2u) 23163 | -5/Factory | Found Prototype Processor 23163 | -5/Factory | Identified Exp. Targeting Computer 23169 | -5/Factory | Found Exp. Targeting Computer 23307 | -5/Factory | Destroyed 10 combat bots 23326 | -5/Factory | First assault squad dispatched 23342 | -5/Factory | Incoming assault squad redirected 23410 | -5/Factory | Entered Upper Caves 23671 | -5/Upper Caves | Build established: Tank 24093 | -5/Upper Caves | Build established: Mutant 24297 | -5/Upper Caves | Attracted the attention of an 0b10 checkpoint 24467 | -5/Upper Caves | Discovered new exit (range 9) 24523 | -5/Upper Caves | Entered another Upper Caves area 24559 | -5/Upper Caves | Build established: Tank 24576 | -5/Upper Caves | Learned 8 Factory zone layouts 24610 | -5/Upper Caves | Discovered new exit (range 9) 25087 | -5/Upper Caves | Discovered new exit (range 5) 25093 | -5/Upper Caves | Build established: Mutant 25096 | -5/Upper Caves | Entered Zhirov 25096 | -5/Zhirov | Discovered new exit (range 3) 25123 | -5/Zhirov | Met Zhirov 25151 | -5/Zhirov | Learned location of Quarantine (-2) 25151 | -5/Zhirov | Learned location of Testing (-3) 25160 | -5/Zhirov | Zhirov requested help retrieving the SGEMP Prototype 25180 | -5/Zhirov | Found Alien Artifact 25180 | -5/Zhirov | Identified Integrated Dissipator 25180 | -5/Zhirov | Installed Integrated Dissipator, increased core heat dissipation (+20) 25198 | -5/Zhirov | Found Alien Artifact 25351 | -5/Zhirov | Entered Proximity Caves 25637 | -4/Proximity Caves | Build established: Tank 26111 | -4/Proximity Caves | Discovered new exit (range 13) 26147 | -4/Proximity Caves | Entered Factory 26147 | -4/Factory | Evolved 2 slots: Power x1, Utility x1 26148 | -4/Factory | Identified exit to Research 26226 | -4/Factory | Build established: Mutant 26357 | -4/Factory | Discovered new exit (range 8) 26643 | -4/Factory | Entered Upper Caves 26666 | -4/Upper Caves | Spotted B-86 Titan 26688 | -4/Upper Caves | Destroyed B-86 Titan 27193 | -4/Upper Caves | Attracted the attention of an 0b10 outpost 27223 | -4/Upper Caves | Destroyed 7 combat bots 27464 | -4/Upper Caves | Build established: Tank 27676 | -4/Upper Caves | Discovered new exit (range 3) 27802 | -4/Upper Caves | Build established: Mutant 27802 | -4/Upper Caves | Entered another Upper Caves area 27802 | -4/Upper Caves | Accompanied by 2 allies 27804 | -4/Upper Caves | Attracted the attention of an 0b10 outpost 27843 | -4/Upper Caves | Destroyed 7 combat bots 27847 | -4/Upper Caves | Lost 3 parts (3u) 28013 | -4/Upper Caves | Discovered exit to Research (range 6) 28159 | -4/Upper Caves | Attacked by a delusional Derelict stockpiling Unaware 28272 | -4/Upper Caves | Encountered a Warlord checkpoint 28286 | -4/Upper Caves | Learned 4 Research zone layouts 28398 | -4/Upper Caves | Learned Research trap positions 28478 | -4/Upper Caves | Build established: Commander-Mutant 28480 | -4/Upper Caves | Discovered new exit (range 11) 28833 | -4/Upper Caves | Build established: Mutant 29418 | -4/Upper Caves | Entered Warlord 29418 | -4/Warlord | Accompanied by 3 allies 29462 | -4/Warlord | System corruption cleaned by Quarantine Array 29775 | -4/Warlord | Learned Quarantine trap positions 29777 | -4/Warlord | Learned 4 Research zone layouts 29777 | -4/Warlord | Learned 4 Research zone layouts 29778 | -4/Warlord | Learned Quarantine security intel 29778 | -4/Warlord | Learned Factory scanalyzer intel 29778 | -4/Warlord | Learned Armory recycling unit intel 29832 | -4/Warlord | Build established: Commander-Mutant 29841 | -4/Warlord | Met Warlord 29853 | -4/Warlord | Opened Warlord's prototype stash 29866 | -4/Warlord | Warlord's base attacked by MAIN.C 29871 | -4/Warlord | Found Prototype Device 29871 | -4/Warlord | Identified Thermal Barrier 29904 | -4/Warlord | Found Prototype Reactor 29904 | -4/Warlord | Identified Vortex Chain Reactor 29910 | -4/Warlord | Found Exp. Targeting Computer 30143 | -4/Warlord | Found Prototype Energy Cannon 30147 | -4/Warlord | Identified Vortex Driver 30152 | -4/Warlord | Found Prototype Energy Cannon 30152 | -4/Warlord | Identified Vortex Cannon 30159 | -4/Warlord | Found Vortex Cannon 30166 | -4/Warlord | Found Vortex Driver 30216 | -4/Warlord | Warlord forces counterattacked 30435 | -4/Warlord | Spotted Executioner 30508 | -4/Warlord | Spotted Executioner 30510 | -4/Warlord | Spotted Executioner 30522 | -4/Warlord | Destroyed Executioner 30530 | -4/Warlord | Spotted Executioner 30541 | -4/Warlord | Warlord base infiltrated, sounded retreat 30577 | -4/Warlord | Destroyed 8 combat bots 30609 | -4/Warlord | Spotted Executioner 30669 | -4/Warlord | Spotted B-86 Titan 30669 | -4/Warlord | Spotted Striker 30669 | -4/Warlord | Spotted Executioner 30672 | -4/Warlord | Spotted B-90 Cyclops 30745 | -4/Warlord | Discovered new exit (range 14) 30767 | -4/Warlord | Spotted Striker 30769 | -4/Warlord | Spotted Striker 30775 | -4/Warlord | Entered Proximity Caves 30776 | -3/Proximity Caves | System corruption reached 10% 30837 | -3/Proximity Caves | Build established: Scavenger-Tank 31483 | -3/Proximity Caves | Build established: Scavenger-Mutant 31572 | -3/Proximity Caves | Attracted the attention of an 0b10 outpost 31628 | -3/Proximity Caves | Destroyed 7 combat bots 31865 | -3/Proximity Caves | Build established: Scavenger-Tank 31910 | -3/Proximity Caves | Attracted the attention of an 0b10 checkpoint 31958 | -3/Proximity Caves | Destroyed 7 combat bots 32065 | -3/Proximity Caves | Discovered exit to Research (range 10) 32495 | -3/Proximity Caves | Entered Research 32495 | -3/Research | Evolved 2 slots: Utility x2 32496 | -3/Research | Identified exit to Armory 32497 | -3/Research | Identified exit to Testing 32497 | -3/Research | Identified exit to Research 32498 | -3/Research | Loaded intel: 77 trap records 32728 | -3/Research | Spotted B-86 Titan 32766 | -3/Research | Destroyed B-86 Titan 32796 | -3/Research | Build established: Tank 32921 | -3/Research | Found Unknown Device 32921 | -3/Research | Identified Antimissile System 33315 | -3/Research | Garrison activated, responded to threat 33391 | -3/Research | System corruption reached 10% 33577 | -3/Research | Incoming assault squad redirected 33588 | -3/Research | Found Gamma Bomb Array 33633 | -3/Research | Found Prototype Launcher 33633 | -3/Research | Identified Adv. Micro-nuke Launcher 33828 | -3/Research | Entered Testing 33875 | -3/Testing | Identified Transdimensional Reconstructor 33964 | -3/Testing | Repaired Hvy. Missile Launcher 34127 | -3/Testing | First assault squad dispatched 34177 | -3/Testing | Spotted Striker 34177 | -3/Testing | Spotted Striker 34196 | -3/Testing | Destroyed Striker 34199 | -3/Testing | Destroyed Striker 34226 | -3/Testing | Spotted Alpha 7 34255 | -3/Testing | Incoming assault squad redirected 34278 | -3/Testing | Destroyed Alpha 7 34291 | -3/Testing | Found Corrupted Prototype Device 34293 | -3/Testing | Lost 6 parts (1p4u1w) 34299 | -3/Testing | Destroyed 9 combat bots 34342 | -3/Testing | Scanned by Researcher 34350 | -3/Testing | Stole the SGEMP Prototype 34352 | -3/Testing | Incoming assault squad redirected 34652 | -3/Testing | Lost 3 parts (1n2u) 34798 | -3/Testing | System corruption reached 30% 34873 | -3/Testing | Incoming assault squad redirected 34885 | -3/Testing | Incoming assault squad redirected 34924 | -3/Testing | Lost 4 parts (1p1n1u1w) 34994 | -3/Testing | Lost 4 parts (1p1n2w) 35047 | -3/Testing | Found Prototype Energy Cannon 35090 | -3/Testing | Garrison activated, responded to threat 35254 | -3/Testing | Destroyed 7 combat bots 35308 | -3/Testing | Core integrity fell below 50% 35320 | -3/Testing | Core integrity fell below 20% 35323 | -3/Testing | Destroyed by G-67 Veteran with Field Laser Last Messages --------------- 35311_ Imp. KE Penetrator destroyed. 35311_ Slug penetrates Wall. 35311_ Rnf. Antimatter Reactor destroyed. 35311_ Penetrated by Slug. 35312_ Adv. Variable Charge Gun destroyed. 35312_ Penetrated by Slug. 35312_ Acquired 80 matter. 35313_ The unstable cave ceiling collapses. 35314_ Critical hit (Burn: +50). 35314_ Imp. Core Shielding destroyed. 35315_ Penetrated by Slug. 35316_ Imp. Core Shielding destroyed. 35316_ Nova Cannon destroyed. 35316_ Slug penetrates Wall. 35317_ Penetrated by Slug. 35319_ Slug penetrates Tau Charger. 35319_ Penetrated by Slug. 35321_ System corrupted: Heat flow error (+242). 35322_ Imp. Energy Well destroyed. 35322_ Penetrated by Slug. Map ----- +----------------------------------------------------+ | ???" # = ??????????????????????????????????? | | ??? ??????????????????????????????????? | | ???? # ??????????????????????????????????? | | ???? ??????????????????????????????????? | | ????? #??????????????????????????????????? | | ?????# #??????????????????????????????????? | | ?????# ##????????? ???????????????????????? | | ?????? # ????????? ??????????????????????? | | ??????? #????????? #??????????????????????? | | ???????? ########## #??????????????????????? | | ######### # ## #??????????????????????? | | # #""" ## ??????????????????????? | | """ # ##""" # ##????????????????????? | | """ #= ##""" # #????????????????????? | | """ #$ ##""" ????????????????????? | | # $! ##""" Y ????????????????????? | | """ o$! ## Y ?????????????????????? | | """ #* ## Y ????######???????????? | | """ # ## ??? ???????????? | | * # ## "T" # #??? ???????????? | | # # """ ; ?? ????????????? | | ######+###h #? ?????????????? | | g # """ ??????????????? | | #"" "" # g # """ "?????????????? | | #""T"" # g ; """ "?????????????? | | # """ % h @=; """ "?????????????? | | ###### # ######### < # """ ??????????????? | | ????# = #???# #? ????????????? | | ????# # ##???# #?? ???????????? | | ????# # # # # #???######???? ???????????? | | ????## # # #??????????????######??????????? | | ?????## # ##??????????????????????????????? | | ??????# # #???????????????????????????????? | | ??????## # # #???????????????????????????????? | | ???????###########???????????????????????????????? | | ?????????????????????????????????????????????????? | | ?????????????????????????????????????????????????? | | ?????????????????????????????????????????????????? | | ?????????????????????????????????????????????????? | | ?????????????????????????????????????????????????? | | ?????????????????????????????????????????????????? | | ?????????????????????????????????????????????????? | | ?????????????????????????????????????????????????? | | ?????????????????????????????????????????????????? | | ?????????????????????????????????????????????????? | | ?????????????????????????????????????????????????? | | | | | | | | | +----------------------------------------------------+ Best States ------------- Heat Dissipation 123 Coolant Potential 100 Energy Generation 55 Energy Capacity 1200 Matter Stores 451 Matter Capacity 1800 Sight Range 16 Robot Scan Range 18 Terrain Scan Range 16 Terrain Scan Density 10 Jamming Range 12 Cloak Strength 3 Armor Coverage 2100 Resistance: KI 30 Resistance: TH 50 Resistance: EM 15 Core Shielding 40 Propulsion Shielding 66 Weapon Shielding 90 Weapon Cycling 25 Phase Shifting 10 Evasion (%) 55 Targeting Accuracy 12 Target Analysis 12 Core Analysis 6 Armor Integrity Analysis 30 Recoil Reduction 6 Matter Filtering 30 Energy Filtering 30 Particle Charging 30 Offensive Hacking 38 Defensive Hacking 12 Item Schematics ----------------- Huge Storage Unit | -9/Materials | Hacked Combat Drone Bay | -7/Data Miner | Free Lgt. Regenerative Plating | -7/Data Miner | Free Cld. Cesium-ion Thruster | -7/Data Miner | Free Gravity Neutralizer | -7/Data Miner | Free Com. Ion Cannon | -7/Data Miner | Free Gyrokinetic Inverter | -7/Data Miner | Free Imp. Weapon Cycler | -7/Data Miner | Free Mass Driver | -7/Data Miner | Free Centrium Heavy Treads | -5/Factory | Scanalyzed Assault Drone Bay | -5/Zhirov | Free Exp. Heat Sink | -5/Zhirov | Free Exp. Optical Array | -5/Zhirov | Free Imp. Arc Thrower | -5/Zhirov | Free Enh. Biometal Leg | -3/Testing | Archive Enh. Force Rifle | -3/Testing | Archive Ionic Axe | -3/Testing | Archive Cld. Antigrav System | -3/Testing | Archive Robot Schematics ------------------ Y-54 Guardian | -7/Data Miner | Free P-60 Hacker | -7/Data Miner | Free W-25 Informer | -7/Data Miner | Free A-15 Conveyor | -7/Data Miner | Free Y-72 Warden | -3/Testing | Archive Fabricated ------------ Nothing Alien Tech Used ----------------- Integrated Dissipator Achievements -------------- None Challenges ------------ None Game ------ Seed WarpAngularBox Manual? 0 Play Time 06:27:05 Cumulative 703.2 hours Start 2022.06.01 @ 03:55:52 End 2022.06.01 @ 22:33:51 Sessions 5 Manual Loads 0 Difficulty Rogue Special Mode None Game No. 173 Rogue 141 Adventurer 31 Explorer 1 Win Type - Total 34 Types 25/0/4/4/0/0/1/0/0 Lore% 83 Gallery% 86 Achievement% 72 Wizard Run 0 Options --------- ASCII 0 Keyboard 0 Movement Arrows Keybinds 0 Fullscreen 1 Font 20/Terminus Map View 66x50 Tactical HUD 1 Map Filters NONE Filters NONE Steam 1 RUN: 7b508063-d621-435a-a34e-6a988ff016ed